Cogmind - Beta 12 @@@ ROGUE MODE // 2023.07.13 @ 18:09:42 Player: Senator Honkstrong Result: Self-destructed Performance ------------- Evolutions (3) 1500 Regions Visited (12) 2400 Robots Destroyed (305) 1525 Value Destroyed (9667) 9667 Prototype IDs (55) 1100 Alien Tech Used (0) 0 Bonus (1485) 1485 TOTAL SCORE: 17677 Bonus ------- High Alert Combat Kills 1296 Follower Combat Kills 14 Entered Garrisons 200 Used RIF Installer 500 Aligned with FarCom 300 Friendly Fire -825 Cogmind --------- Core Integrity 467/700 Matter 284/300 Energy 260/310 System Corruption 25% Temperature Cool (0) Movement Treading (165) Location -7/Factory Parts ------- > --- POWER (1) -------- Cooled Deuterium Engine > --- PROPULSION (4) --- Armored Treads Heavy Treads > --- UTILITY (4) ------ High-capacity Storage Unit Advanced Weapon Cycler System Restoration Module > --- WEAPON (4) ------- Enhanced Autogun Precision Grenade Launcher > --- INVENTORY (20) --- Cooled Ion Engine Advanced Myomer Leg Advanced Myomer Leg Experimental Heat Sink High-capacity Matter Pod (200) Improved Light Armor Plating Authchip [R/Combat] Authchip [R/Combat] Relay Coupler [Duelist] (31) Relay Coupler [Hunter] (18) Recalibrator Decoy Drone Bay (16/16) Guided Plasma Cannon Enhanced Autogun Enhanced Autogun AWS/Gauss Remote Datajack Peak State ------------ > --- POWER ------------ Cooled Deuterium Engine > --- PROPULSION ------- Armored Treads Armored Treads Heavy Treads > --- UTILITY ---------- High-capacity Storage Unit Kinecellerator Advanced Weapon Cycler System Restoration Module > --- WEAPON ----------- Enhanced Autogun 8R-AWN's Boregun 8R-AWN's Boregun Gauss Cannon > --- INVENTORY -------- Cooled Ion Engine Advanced Myomer Leg Advanced Myomer Leg Experimental Heat Sink High-capacity Matter Pod Improved Light Armor Plating Authchip [R/Combat] Authchip [R/Combat] Relay Coupler [Duelist] Relay Coupler [Hunter] Recalibrator Decoy Drone Bay Guided Plasma Cannon Enhanced Autogun Enhanced Autogun AWS/Gauss Precision Grenade Launcher Remote Datajack [Rating: 78] Favorites ----------- Power Reinforced Deuterium Engine Engine Reinforced Deuterium Engine Power Core Light Nuclear Core Propulsion Armored Treads Treads Armored Treads Leg Advanced Myomer Leg Utility High-capacity Storage Unit Device Advanced Weapon Cycler Storage High-capacity Storage Unit Processor Targeting Computer Hackware System Shield Protection Hardened Light Armor Plating Weapon Enhanced Autogun Energy Gun Precision Beam Rifle Energy Cannon Heavy Particle Cannon Ballistic Gun Enhanced Autogun Ballistic Cannon Gauss Cannon Launcher Rocket Launcher Special Weapon Plasma Cutter Build | -11 -10 -10 -9 -9 -9 -8 -8 -8 -8 -7 -7 -7 ------- Run | Jun Mat Min Mat Min Exi Min Mat Gar Mat Fac Was Fac Slots Evolved 6 | . . . 2 . . . 2 . . 2 . . Power . | . . . . . . . . . . . . . Propulsion 2 | . . . . . . . 2 . . . . . Utility 2 | . . . 1 . . . . . . 1 . . Weapon 2 | . . . 1 . . . . . . 1 . . Parts Attached 204 | 6 5 2 39 2 17 7 39 12 30 39 6 . Power 17 | 1 1 . 5 . 1 2 5 . . 2 . . Engine 12 | 1 . . 4 . . 1 4 . . 2 . . Core 5 | . 1 . 1 . 1 1 1 . . . . . Reactor . | . . . . . . . . . . . . . Propulsion 44 | 2 1 . 8 . 4 . 12 . 11 5 1 . Treads 34 | 2 1 . 8 . 1 . 6 . 10 5 1 . Leg 10 | . . . . . 3 . 6 . 1 . . . Wheel . | . . . . . . . . . . . . . Hover . | . . . . . . . . . . . . . Flight . | . . . . . . . . . . . . . Utility 47 | 1 2 . 7 . 5 1 9 6 6 9 1 . Device 25 | . . . 1 . 4 1 2 4 4 8 1 . Storage 4 | 1 1 . 1 . 1 . . . . . . . Processor 1 | . . . 1 . . . . . . . . . Hackware 1 | . . . . . . . 1 . . . . . Protection 16 | . 1 . 4 . . . 6 2 2 1 . . Artifact . | . . . . . . . . . . . . . Weapon 96 | 2 1 2 19 2 7 4 13 6 13 23 4 . Energy Gun 9 | 1 . . 1 . . . 2 . . 5 . . Energy Cannon 8 | . 1 . 6 1 . . . . . . . . Ballistic Gun 56 | 1 . . 10 . 5 2 10 4 12 9 3 . Ballistic Cannon 4 | . . . . . . . . . . 4 . . Launcher 18 | . . 2 2 1 1 2 1 2 1 5 1 . Special Weapon 1 | . . . . . 1 . . . . . . . Impact Weapon . | . . . . . . . . . . . . . Slashing Weapon . | . . . . . . . . . . . . . Piercing Weapon . | . . . . . . . . . . . . . Special Melee Weapon . | . . . . . . . . . . . . . Unidentified Prototypes 13 | . . . 3 . 5 . 4 . . 1 . . Parts Lost 15 | . . . 2 . 4 2 . . 2 3 2 . Power 3 | . . . 1 . 1 1 . . . . . . Propulsion 3 | . . . . . 1 . . . 1 . 1 . Utility 1 | . . . . . . . . . 1 . . . Weapon 8 | . . . 1 . 2 1 . . . 3 1 . Highest Loss Streak 3 | . . . 1 . 3 1 . . 1 1 2 . To Critical Strikes 3 | . . . . . 3 . . . . . . . Average Slot Usage (%) 96 | . 96 100 98 100 99 87 91 96 98 97 73 . Engine 7 | . 2 . 7 11 10 . 7 9 9 7 7 . Core 2 | . 11 14 3 . . 10 1 . . . . . Treads 22 | . 28 28 21 22 20 . 4 36 32 27 19 . Leg 6 | . . . . . 1 22 30 . 3 2 . . Device 7 | . . . 2 . . 21 1 7 9 22 17 . Storage 9 | . 14 14 11 11 11 11 9 9 9 7 7 . Processor 3 | . . . 9 11 11 . . . . . . . Hackware 1 | . . . . . . . 7 . . . . . Protection 7 | . 10 14 8 11 10 . 7 9 7 . . . Energy Cannon 4 | . 13 1 9 10 8 . . . . . . . Ballistic Gun 21 | . 14 14 22 22 22 21 20 21 26 19 12 . Launcher 1 | . . 12 . . 1 . . 4 . . 3 . Naked Turns . | . . . . . . . . . . . . . Heaviest Build 93 | 14 31 32 44 44 93 75 76 90 77 76 79 62 Greatest Support 110 | 40 40 40 46 40 72 72 92 80 80 100 110 90 Greatest Overweight (x) 3 | . . . 1 1 1 1 1 1 1 3 . . Average Overweight (x) . | . . . . 1 . . . . . . . . Largest Inventory Capacity 20 | 8 15 15 20 15 20 20 20 20 20 20 20 20 Average Capacity 17 | 6 9 15 15 15 15 20 20 20 20 20 20 20 Most Carried 20 | . 10 14 15 15 20 20 20 20 20 20 20 19 Average Carried 16 | . 6 12 14 15 13 18 19 17 19 19 19 19 Final Capacity 20 | 8 15 15 15 15 20 20 20 20 20 20 20 20 Final Carried 20 | . 10 14 15 15 20 20 20 20 18 20 19 19 Class Distribution -------------------- 40% | Gunner 15% | Mutant 14% | Tank 10% | Scavenger-Gunner 10% | Scavenger-Tank 8% | Scavenger-Mutant Dominant Class ---------------- Mutant | -10/Materials Mutant | -10/Mines Gunner | -9/Materials Gunner | -9/Mines Gunner | -9/Exiles Scavenger-Mutant | -8/Mines Scavenger-Tank | -8/Materials Mutant | -8/Garrison Tank | -8/Materials Gunner | -7/Factory Mutant | -7/Waste Mutant | -7/Factory Resources | -11 -10 -10 -9 -9 -9 -8 -8 -8 -8 -7 -7 -7 ----------- Run | Jun Mat Min Mat Min Exi Min Mat Gar Mat Fac Was Fac Matter Collected 7858 | 127 264 37 959 141 370 139 956 687 1710 1999 469 . Remotely . | . . . . . . . . . . . . . Salvage Created 12304 | 69 498 24 1815 173 176 208 2529 932 2655 2498 727 . Parts 687 | 1 32 6 124 23 9 17 139 48 137 141 10 . Haulers Intercepted 20 | . 2 . 5 . . . 5 . 4 4 . . Recyclers Shooed 7 | . . . . . . . 3 . 2 2 . . Parts Field Recycled . | . . . . . . . . . . . . . Retrieved Matter . | . . . . . . . . . . . . . Parts Self-Destructed . | . . . . . . . . . . . . . Prevented . | . . . . . . . . . . . . . Kills | -11 -10 -10 -9 -9 -9 -8 -8 -8 -8 -7 -7 -7 ------- Run | Jun Mat Min Mat Min Exi Min Mat Gar Mat Fac Was Fac Combat Hostiles Destroyed 217 | . 9 3 36 9 2 8 39 26 40 42 3 . Guns 160 | . 5 1 18 4 2 5 39 20 38 27 1 . Cannons 20 | . 4 . 10 . . . . . . 6 . . AOE 35 | . . 2 7 4 . 3 . 6 2 9 2 . Classes Destroyed 19 | 1 4 . 4 2 1 . 4 . 1 1 1 . Worker 18 | . . . 2 1 . . 6 . 4 5 . . Builder 9 | . . . 3 . . . 1 . 2 3 . . Tunneler 5 | . . . . 3 . 1 . . . 1 . . Hauler 20 | . 2 . 5 . . . 5 . 4 4 . . Recycler 18 | 1 1 . 3 . . . 2 . 3 8 . . Operator 2 | . . . . . . . 1 . 1 . . . Watcher 19 | . 1 . 5 . . . 4 . 5 4 . . Swarmer 56 | . 3 3 10 6 . 6 4 9 2 13 . . Grunt 100 | . 6 . 16 2 . 2 19 13 26 16 . . Brawler 3 | . . . . . . . 1 1 1 . . . Duelist 4 | . . . 1 . . . . 1 2 . . . Protector 2 | . . . . . . . . . 2 . . . Sentry 34 | . . . 9 . . . 10 2 7 6 . . Demolisher 1 | . . . . 1 . . . . . . . . Hunter 5 | . . . . . . . 4 . . 1 . . Programmer 6 | . . . . . . . . . . 6 . . Heavy 1 | . . . . . . . 1 . . . . . Compactor 3 | . . . . . . . . . . . 3 . Assembled 7 | . . . . . 7 . . . . . . . Best Kill Streak 12 | 1 6 3 10 4 1 4 7 4 12 6 2 . Combat Bots Only 7 | . 3 3 7 4 1 3 6 4 7 4 2 . Max Kills in Single Turn 6 | 1 1 3 6 3 6 3 2 4 3 5 1 . Gunslinging . | . . . . . . . . . . . . . Exploded 4 | . . 2 4 3 . 3 . 3 1 4 1 . Melee . | . . . . . . . . . . . . . Uniques/NPCs Destroyed 1 | . . . . . 1 . . . . . . . 8R-AWN (-9/Exiles) Combat | -11 -10 -10 -9 -9 -9 -8 -8 -8 -8 -7 -7 -7 -------- Run | Jun Mat Min Mat Min Exi Min Mat Gar Mat Fac Was Fac Damage Taken 6916 | . 179 68 837 233 784 231 889 1261 946 1401 87 . Core 639 | . 16 . 78 38 39 39 81 14 101 233 . . Absorbed by Shields . | . . . . . . . . . . . . . Redirected to Shielding 5 | . 1 . 4 . . . . . . . . . Regen/Repaired (Parts) 851 | . . . . . . . 75 . 776 . . . Core Remaining (%) 77 | 100 . 93 . . . 51 . . 64 . . . Volleys Fired 584 | 2 25 2 91 13 26 14 106 52 123 106 24 . Largest 4 | 2 2 2 3 3 3 1 3 3 3 4 4 . Hottest 195 | 60 80 53 121 121 79 36 75 86 86 195 133 . Shots Fired 1661 | 4 50 4 270 39 78 26 255 125 361 383 66 . Gun 1423 | 4 25 2 190 26 72 23 255 117 357 307 45 . Cannon 200 | . 25 . 74 11 . . . . . 72 18 . Launcher 33 | . . 2 6 2 1 3 . 8 4 4 3 . Special 5 | . . . . . 5 . . . . . . . Kinetic 1479 | 2 25 2 190 26 72 23 255 117 357 347 63 . Thermal 147 | . 25 . 74 11 5 . . . . 32 . . Explosive 25 | . . 2 6 2 1 . . 8 . 3 3 . Electromagnetic 10 | 2 . . . . . 3 . . 4 1 . . Robot Hit Streak 20 | 2 7 1 20 3 16 14 18 11 16 19 12 . Robot Miss Streak 7 | 1 3 2 4 2 1 1 3 7 5 5 4 . Penetration Max 1 | . . . . . . . . 1 1 1 . . Secondary Targets 8 | . . . . . . . . 4 4 . . . Max Gunslinging Chain 1 | . . . . . . . . 1 1 . . . Autonomous 165 | . . . . . . 12 109 13 23 7 1 . Shots Hit Robots 1063 | 2 30 1 173 17 69 18 193 67 228 219 46 . Core Hits 482 | 2 18 3 71 11 26 10 87 38 103 103 10 . Critical Kills 11 | . . . 1 1 . . 2 2 3 1 1 . Critical Parts Destroyed 16 | . . . 3 . . 1 . 1 8 1 2 . Critical Strikes 50 | . . . 4 1 . 1 2 3 11 15 13 . Burn 1 | . . . . . . . . . . 1 . . Meltdown 2 | . . . 1 1 . . . . . . . . Destroy 32 | . . . 3 . . 1 2 3 11 2 10 . Blast 15 | . . . . . . . . . . 12 3 . Melee Attacks . | . . . . . . . . . . . . . Impact . | . . . . . . . . . . . . . Slashing . | . . . . . . . . . . . . . Piercing . | . . . . . . . . . . . . . Sneak Attacks . | . . . . . . . . . . . . . Combat Hostiles . | . . . . . . . . . . . . . Follow-up Attacks . | . . . . . . . . . . . . . Damage Inflicted 25418 | 25 452 133 3574 611 1231 581 4545 1947 4905 5922 1492 . Guns 17997 | 25 189 13 1619 188 1004 426 4492 1341 4621 3393 686 . Cannons 3462 | . 263 . 1281 156 . . . . . 1402 360 . Explosions 3721 | . . 113 660 236 197 148 . 606 235 1080 446 . Melee . | . . . . . . . . . . . . . Ramming 208 | . . 7 14 31 . 7 53 . 49 47 . . Kinetic 19296 | 13 189 13 1619 188 1004 426 4492 1341 4621 4344 1046 . Thermal 3047 | . 263 . 1281 156 30 95 . . 64 1158 . . Explosive 2566 | . . 113 660 236 197 . . 606 . 308 446 . Electromagnetic 301 | 12 . . . . . 53 . . 171 65 . . Impact . | . . . . . . . . . . . . . Slashing . | . . . . . . . . . . . . . Piercing . | . . . . . . . . . . . . . Highest Corruption 25 | . . . . . . . . . 2 1 25 25 Average Corruption 3 | . . . . . . . . . 1 1 14 25 Corruption Purged 2 | . . . . . . . . . . 1 1 . Corruption Blocked . | . . . . . . . . . . . . . Effects 43 | . . . . . . . . . 28 1 13 1 Message Errors 13 | . . . . . . . . . 8 . 5 . Matter Fused 12 | . . . . . . . . . 9 . 3 . Heat Flow Errors 2 | . . . . . . . . . 2 . . . Energy Discharges 6 | . . . . . . . . . 3 . 2 1 Parts Rejected 1 | . . . . . . . . . 1 . . . Data Loss (minor) 2 | . . . . . . . . . 2 . . . Data Loss (major) 2 | . . . . . . . . . 1 . 1 . Misfires 2 | . . . . . . . . . 1 1 . . Alerts 1 | . . . . . . . . . . . 1 . Weapon Failures 2 | . . . . . . . . . 1 . 1 . Overload Shots . | . . . . . . . . . . . . . Overflow Damage 542 | . . 8 15 69 . 39 . 13 36 362 . . Projectiles 26 | . . . 15 6 . . . . . 5 . . Explosions 516 | . . 8 . 63 . 39 . 13 36 357 . . Melee . | . . . . . . . . . . . . . Knockbacks 17 | . . . . 2 . . . . 1 14 . . Impact 3 | . . . . 2 . . . . 1 . . . Kinetic 14 | . . . . . . . . . . 14 . . Secondary . | . . . . . . . . . . . . . Self-Inflicted Damage 456 | . . 47 . 20 . 76 . . 18 295 . . Shots 11 | . . 1 . 1 . 2 . . 2 5 . . Rammed 20 | . 1 2 4 5 . . . . 3 5 . . Targets Rammed 29 | . 1 2 4 7 . 1 3 . 5 6 . . Kicked 4 | . . . . . . 1 3 . . . . . Crushed 5 | . . . . 2 . . . . 2 1 . . Highest Temperature 486 | . 129 . 336 259 196 32 222 402 390 456 486 . Average Temperature 100 | . 46 . 75 89 87 12 40 160 113 96 255 . Received Heat Transfer 1869 | . 75 . 303 9 . 27 243 459 477 276 . . Effects 26 | . . . 1 . . . 3 13 2 . 7 . Shutdowns 3 | . . . . . . . . 2 1 . . . Energy Bleed 4 | . . . 1 . . . . 2 1 . . . Interference 14 | . . . . . . . 3 8 . . 3 . Matter Decay 2 | . . . . . . . . 1 . . 1 . Short Circuit 2 | . . . . . . . . . . . 2 . Damage (minor) 1 | . . . . . . . . . . . 1 . Siege Activations . | . . . . . . . . . . . . . Robots Corrupted . | . . . . . . . . . . . . . Combat Hostiles . | . . . . . . . . . . . . . Parts Fried 2 | . . . . . . . . . 2 . . . Impact Corruptions . | . . . . . . . . . . . . . Robots Melted 2 | . . . 1 1 . . . . . . . . Combat Hostiles 2 | . . . 1 1 . . . . . . . . Parts Melted 6 | . . . 3 1 . . . . . 2 . . Heat Transferred 4673 | . 555 . 2220 222 27 150 . . 100 1399 . . Parts Sabotaged . | . . . . . . . . . . . . . Parts Stolen . | . . . . . . . . . . . . . Parts Stripped . | . . . . . . . . . . . . . Power Chain Reactions 2 | . . . . . . 1 . . 1 . . . Missiles Intercepted . | . . . . . . . . . . . . . Alert | -11 -10 -10 -9 -9 -9 -8 -8 -8 -8 -7 -7 -7 ------- Run | Jun Mat Min Mat Min Exi Min Mat Gar Mat Fac Was Fac Peak Influence 1432 | 5 199 101 701 376 . 148 536 1432 853 965 356 247 Initial 698 | . 3 . . 126 . . 57 289 698 277 337 247 Average 335 | 2 32 40 348 102 . 32 240 844 611 327 346 247 Maximum Alert Level 4 | . . . 3 1 . . 2 4 3 3 1 1 Low Security (%) 43 | 100 100 100 23 80 . 100 40 . . 49 . . Level 1 23 | . . . 41 19 . . 53 6 . 23 100 100 Level 2 22 | . . . 34 . . . 5 40 70 15 . . Level 3 8 | . . . . . . . . 24 29 11 . . Level 4 2 | . . . . . . . . 28 . . . . Level 5 . | . . . . . . . . . . . . . High Security . | . . . . . . . . . . . . . Max Security . | . . . . . . . . . . . . . Squads Dispatched 27 | . . . 2 . . 1 7 . 8 9 . . Investigation 8 | . . . 1 . . . 3 . 4 . . . Extermination 5 | . . . . . . . . . . 5 . . Reinforcement 11 | . . . 1 . . 1 3 . 2 4 . . Assault 2 | . . . . . . . . . 2 . . . Garrison 1 | . . . . . . . 1 . . . . . Intercept . | . . . . . . . . . . . . . Searches Triggered . | . . . . . . . . . . . . . Construction Impeded 2 | . . . . . . 1 1 . . . . . Haulers Reinforced . | . . . . . . . . . . . . . Active Scanning Responses . | . . . . . . . . . . . . . Cargo Convoy Interrupts . | . . . . . . . . . . . . . Stealth | -11 -10 -10 -9 -9 -9 -8 -8 -8 -8 -7 -7 -7 --------- Run | Jun Mat Min Mat Min Exi Min Mat Gar Mat Fac Was Fac Distress Signals 11 | . 1 . 3 . . . 2 . 2 3 . . Communications Jammed . | . . . . . . . . . . . . . Distress Signals . | . . . . . . . . . . . . . Times Spotted 274 | . 15 3 50 11 2 9 46 27 58 48 5 . Peak Tracking Total 9 | . 3 3 5 4 3 4 4 9 6 4 3 . Tactical Retreats 12 | . . . 1 . . . 1 2 5 1 2 . Traps | -11 -10 -10 -9 -9 -9 -8 -8 -8 -8 -7 -7 -7 ------- Run | Jun Mat Min Mat Min Exi Min Mat Gar Mat Fac Was Fac Traps Triggered 16 | . . . 2 . . . 2 3 7 2 . . Indirectly . | . . . . . . . . . . . . . Trap Hack Attempts . | . . . . . . . . . . . . . Triggered . | . . . . . . . . . . . . . Disarmed . | . . . . . . . . . . . . . Reprogrammed 3 | . . . . . . . 3 . . . . . Reused . | . . . . . . . . . . . . . Traps Extracted . | . . . . . . . . . . . . . Installed . | . . . . . . . . . . . . . Triggered 1 | . . . . 1 . . . . . . . . Machines | -11 -10 -10 -9 -9 -9 -8 -8 -8 -8 -7 -7 -7 ---------- Run | Jun Mat Min Mat Min Exi Min Mat Gar Mat Fac Was Fac Machines Disabled 28 | . . 1 1 2 3 2 7 4 2 6 . . Max in Single Turn 2 | . . 1 1 1 2 1 1 1 1 2 . . Garrison Relay 4 | . . . . . . . . 4 . . . . Machines Repaired . | . . . . . . . . . . . . . Machines Sabotaged . | . . . . . . . . . . . . . Overloaded Fab Kills . | . . . . . . . . . . . . . Hacking | -11 -10 -10 -9 -9 -9 -8 -8 -8 -8 -7 -7 -7 --------- Run | Jun Mat Min Mat Min Exi Min Mat Gar Mat Fac Was Fac Machines Accessed 69 | . 9 1 15 . 1 . 17 3 13 10 . . Terminals 47 | . 7 . 11 . . . 10 3 9 7 . . Fabricators . | . . . . . . . . . . . . . Repair Stations 6 | . . . 2 . . . 2 . 2 . . . Recycling Units 9 | . 2 . 1 . . . 2 . 1 3 . . Scanalyzers 4 | . . . 1 . . . 2 . 1 . . . Garrison Access 1 | . . . . . . . 1 . . . . . Total Hacks 255 | . 32 1 50 . 1 . 90 4 51 26 . . Successful 153 | . 23 1 26 . 1 . 57 1 34 10 . . Failed 99 | . 8 . 23 . . . 32 3 17 16 . . Catastrophic 18 | . 3 . 3 . . . 5 2 4 1 . . Database Lockouts 3 | . 1 . 1 . . . 1 . . . . . Manual 99 | . 13 . 25 . 1 . 20 3 27 10 . . Terminals 185 | . 27 . 38 . . . 58 4 38 20 . . Fabricators . | . . . . . . . . . . . . . Repair Stations 22 | . . . 5 . . . 10 . 7 . . . Recycling Units 18 | . 5 . 2 . . . 3 . 2 6 . . Scanalyzers 24 | . . . 5 . . . 15 . 4 . . . Garrison Access 4 | . . . . . . . 4 . . . . . Terminal Hacks 88 | . 17 1 16 . 1 . 28 1 18 6 . . Record 9 | . 2 . . . . . 7 . . . . . Robot Analysis 19 | . 3 . 6 . . . 5 . 5 . . . Prototype ID Bank 15 | . 2 . 4 . . . 3 . 4 2 . . Open Door 1 | . . 1 . . . . . . . . . . Open DSF 2 | . . . . . . . . . . 2 . . Level Access Points 2 | . . . . . . . . . 1 1 . . Branch Access Points 2 | . 1 . . . . . . . 1 . . . Emergency Access Points 1 | . . . . . . . 1 . . . . . Terminal Index 3 | . . . . . . . 1 . 2 . . . Recycling Unit Index 1 | . 1 . . . . . . . . . . . Unreport Threat 13 | . 3 . 2 . . . 3 . 5 . . . Locate Traps 9 | . 2 . 3 . . . 3 . . 1 . . Reprogram Traps 2 | . . . . . . . 2 . . . . . Maintenance Status 1 | . 1 . . . . . . . . . . . Transport Status 1 | . 1 . . . . . . . . . . . Assault Status 1 | . . . . . . . 1 . . . . . Hauler Manifests 1 | . . . . . . . 1 . . . . . Zone Layout 3 | . 1 . 1 . . . 1 . . . . . Patrol Navigation 1 | . . . . . . . . 1 . . . . EX-Prototype ID Bank 1 | . . . . . 1 . . . . . . . Fabricator Hacks . | . . . . . . . . . . . . . Repair Station Hacks 17 | . . . 2 . . . 8 . 7 . . . Scan Component 11 | . . . 2 . . . 5 . 4 . . . Repair 6 | . . . . . . . 3 . 3 . . . Recycling Unit Hacks 7 | . 3 . 1 . . . 1 . 1 1 . . Retrieve Components 7 | . 3 . 1 . . . 1 . 1 1 . . Scanalyzer 20 | . . . 4 . . . 13 . 3 . . . Insert Component 10 | . . . 3 . . . 5 . 2 . . . Analyze 10 | . . . 1 . . . 8 . 1 . . . Garrison Access Hacks 1 | . . . . . . . 1 . . . . . Unlock Access 1 | . . . . . . . 1 . . . . . Unauthorized Hacks 20 | . 3 . 3 . . . 6 . 5 3 . . Terminals 20 | . 3 . 3 . . . 6 . 5 3 . . Botnet 20 | . 3 . 3 . . . 6 . 5 3 . . Fabricators . | . . . . . . . . . . . . . Repair Stations . | . . . . . . . . . . . . . Recycling Units . | . . . . . . . . . . . . . Scanalyzers . | . . . . . . . . . . . . . Garrison Access . | . . . . . . . . . . . . . Data Cores Recovered 1 | . . . . . . . 1 . . . . . Used . | . . . . . . . . . . . . . Hacking Detections 65 | . 8 . 15 . . . 16 3 13 10 . . Full Trace Events 8 | . . . 2 . . . 2 . 4 . . . Feedback Events . | . . . . . . . . . . . . . Feedback Blocked . | . . . . . . . . . . . . . Robot Schematics Acquired . | . . . . . . . . . . . . . Robots Built . | . . . . . . . . . . . . . Authchips . | . . . . . . . . . . . . . Time . | . . . . . . . . . . . . . Total Robot Build Rating . | . . . . . . . . . . . . . Part Schematics Acquired 5 | . . . 1 . . . 3 . 1 . . . Parts Built . | . . . . . . . . . . . . . Authchips . | . . . . . . . . . . . . . Time . | . . . . . . . . . . . . . Total Part Build Rating . | . . . . . . . . . . . . . Parts Repaired 6 | . . . . . . . 3 . 3 . . . Time 333 | . . . . . . . 219 . 114 . . . Parts Recycled . | . . . . . . . . . . . . . Recycled Matter . | . . . . . . . . . . . . . Retrieved Matter . | . . . . . . . . . . . . . Retrieved Components 31 | . 2 . 10 . . . 9 . 10 . . . Parts Scanalyzed 6 | . . . 1 . . . 4 . 1 . . . Part Schematics Acquired 5 | . . . 1 . . . 3 . 1 . . . Parts Damaged 2 | . . . . . . . 2 . . . . . Bothacking | -11 -10 -10 -9 -9 -9 -8 -8 -8 -8 -7 -7 -7 ------------ Run | Jun Mat Min Mat Min Exi Min Mat Gar Mat Fac Was Fac Used RIF Installer 1 | . . . . . . . . 1 . . . . Robots Hacked . | . . . . . . . . . . . . . Non-combat . | . . . . . . . . . . . . . Combat . | . . . . . . . . . . . . . Robot Hacks Applied . | . . . . . . . . . . . . . Relay Couplers Released 14 | . . . . . . . . 14 . . . . Machine Destruction 14 | . . . . . . . . 14 . . . . Fabnet Peak Effective % . | . . . . . . . . . . . . . Robots Rewired 3 | . . . . . . . . 3 . . . . Allies Hacked . | . . . . . . . . . . . . . Hacks Repelled . | . . . . . . . . . . . . . Allies | -11 -10 -10 -9 -9 -9 -8 -8 -8 -8 -7 -7 -7 -------- Run | Jun Mat Min Mat Min Exi Min Mat Gar Mat Fac Was Fac Total Allies 9 | . . . . 6 . . . 3 . . . . Largest Group 4 | . . . . 4 1 . . 2 3 . . . Highest-Rated Group 71 | . . . . 71 31 . . 10 15 . . . Highest-Rated Ally 31 | . . . . 31 31 . . 5 5 . . . Total Orders 19 | . . . . 2 . . . . 1 16 . . STAY 2 | . . . . 1 . . . . . 1 . . ROAM 1 | . . . . . . . . . 1 . . . FOLLOW 8 | . . . . 1 . . . . . 7 . . EXPLORE 7 | . . . . . . . . . . 7 . . RETURN 1 | . . . . . . . . . . 1 . . Ally Attacks 27 | . . . . 19 . . . . 8 . . . Total Damage 202 | . . . . 146 . . . . 56 . . . Kills 2 | . . . . 2 . . . . . . . . Allies Corrupted . | . . . . . . . . . . . . . Allies Melted . | . . . . . . . . . . . . . Intel | -11 -10 -10 -9 -9 -9 -8 -8 -8 -8 -7 -7 -7 ------- Run | Jun Mat Min Mat Min Exi Min Mat Gar Mat Fac Was Fac Robot Analysis Total 19 | . 3 . 6 . . . 5 . 5 . . . Derelict Logs Recovered 2 | . . 1 . 1 . . . . . . . . Drone Launches 9 | . . . . . . . . . . 9 . . Drone Recoveries 3 | . . . . . . . . . . 3 . . Exploration | -11 -10 -10 -9 -9 -9 -8 -8 -8 -8 -7 -7 -7 ------------- Run | Jun Mat Min Mat Min Exi Min Mat Gar Mat Fac Was Fac Turns Passed 24168 | 80 1193 955 2981 2077 3415 1048 3376 2013 2773 3907 345 5 Spaces Moved 10962 | 43 619 588 1323 797 1250 549 1794 835 1172 1826 163 3 Core 2 | 2 . . . . . . . . . . . . Treads 8696 | 41 619 588 1323 797 1162 . 167 835 1172 1826 163 3 Legs 2264 | . . . . . 88 549 1627 . . . . . Wheels . | . . . . . . . . . . . . . Hover . | . . . . . . . . . . . . . Flight . | . . . . . . . . . . . . . Fastest Speed 50 | 50 160 160 160 250 120 120 120 170 170 167 165 165 Average Speed 185 | 154 160 160 176 250 244 182 139 181 193 183 165 165 Slowest Speed 410 | 160 160 160 250 250 250 190 193 250 250 410 167 165 Overloaded Moves . | . . . . . . . . . . . . . Propulsion Burnouts . | . . . . . . . . . . . . . Robots Hopped . | . . . . . . . . . . . . . Cave-ins Triggered . | . . . . . . . . . . . . . Exploration Rate (%) 70 | 4 77 96 96 100 65 98 97 60 83 62 78 1 Regions Visited 12 Branch Regions 4 Pre-discovered Areas 1 | . . . . 1 . . . . . . . . Known Exits Taken 4 | . 1 . 1 . . . 1 . 1 . . . Unknown Exits Taken 5 | 1 . 1 . 1 1 1 . . . . . . Scrap Searched 4 | . . 1 . 1 . 2 . . . . . . Spaces Dug . | . . . . . . . . . . . . . Terrain Destroyed 309 | . . 19 17 18 7 22 57 67 15 54 33 . Melee . | . . . . . . . . . . . . . Projectile 109 | . . . . 3 . 12 57 8 11 11 7 . AOE 199 | . . 19 17 15 7 10 . 59 3 43 26 . Terrain Rammed . | . . . . . . . . . . . . . Walls Destroyed . | . . . . . . . . . . . . . Machines Disabled . | . . . . . . . . . . . . . Actions | -11 -10 -10 -9 -9 -9 -8 -8 -8 -8 -7 -7 -7 --------- Run | Jun Mat Min Mat Min Exi Min Mat Gar Mat Fac Was Fac Total 14163 | 50 772 597 1779 842 1551 588 2604 1276 1584 2302 215 3 Wait 2083 | . 108 . 263 24 198 12 595 344 239 287 13 . Move 10951 | 42 618 587 1322 796 1249 548 1793 834 1171 1826 162 3 Hop . | . . . . . . . . . . . . . Pick Up 127 | . 11 3 21 . 31 3 26 9 7 13 3 . Fast Attach 75 | 6 1 . 13 . 3 2 19 . 14 16 1 . Attach 45 | . 1 . 5 . 5 2 8 5 5 10 4 . Detach 13 | . . . 2 . 3 . 2 . 1 5 . . Swap 84 | . 3 2 21 2 9 3 12 7 11 13 1 . Drop 155 | . 4 1 37 . 27 3 40 8 8 20 7 . Fire 584 | 2 25 2 91 13 26 14 106 52 123 106 24 . Melee . | . . . . . . . . . . . . . Ram . | . . . . . . . . . . . . . Kick 4 | . . . . . . 1 3 . . . . . Crush 25 | . 1 2 4 7 . . . . 5 6 . . Escape Stasis . | . . . . . . . . . . . . . Rewire 17 | . . . . . . . . 17 . . . . Trap . | . . . . . . . . . . . . . Miscellaneous . | . . . . . . . . . . . . . Route ------- -11/Junkyard -10/Materials (discovered 4 exits: *Mat x2 / *Min x2) -10/Mines (discovered 2 exits: *Mat x2) -9/Materials (discovered 5 exits: *Mat x3 / *Min / [*Sto]) -9/Mines (discovered 4 exits: *Mat x2 / *Exi / [*Zio]) -9/Exiles -8/Mines (discovered 2 exits: *Mat x2) -8/Materials (discovered 4 exits: *Fac x3 / Gar) -8/Garrison (discovered 3 exits: *Mat x3) -8/Materials (discovered 3 exits: *Fac x3) -7/Factory (discovered 4 exits: *Fac x4) -7/Waste -7/Factory History --------- Turn | Location | Event 17 | -11/Junkyard | Discovered new exit (range 15) 81 | -11/Junkyard | Entered Materials 135 | -10/Materials | Discovered new exit (range 6) 301 | -10/Materials | Build established: Mutant 376 | -10/Materials | Discovered new exit (range 8) 475 | -10/Materials | Central database locked down 491 | -10/Materials | Identified exit to Mines 831 | -10/Materials | Discovered new exit (range 5) 1119 | -10/Materials | Discovered new exit (range 6) 1274 | -10/Materials | Entered Mines 1399 | -10/Mines | Found the Drone Emporium 1406 | -10/Mines | Found Prototype Device 1447 | -10/Mines | Discovered new exit (range 10) 1528 | -10/Mines | Discovered new exit (range 4) 1578 | -10/Mines | Received a Rocket Launcher from a helpful Derelict 1839 | -10/Mines | Learned location of 1 exit from Materials 2229 | -10/Mines | Entered Materials 2229 | -9/Materials | Evolved 2 slots: Utility x1, Weapon x1 2230 | -9/Materials | Identified exit to Mines 2576 | -9/Materials | Discovered new exit (range 16) 2888 | -9/Materials | Build established: Gunner 3734 | -9/Materials | Discovered new exit (range 10) 3859 | -9/Materials | Identified Decoy Drone Bay 3908 | -9/Materials | Discovered new exit (range 15) 4006 | -9/Materials | Destroyed 7 combat bots 4389 | -9/Materials | Discovered new exit (range 15) 4917 | -9/Materials | Central database locked down 5210 | -9/Materials | Entered Mines 5229 | -9/Mines | Met a Derelict bent on vengeance 5256 | -9/Mines | Assembled infested the area 5674 | -9/Mines | Assisted by bots powering up and referring to "LRC-V3" 5727 | -9/Mines | Discovered new exit (range 5) 5903 | -9/Mines | Learned location of Storage (-9) 5903 | -9/Mines | Discovered new exit (range 11) 5907 | -9/Mines | A Derelict revealed a hidden shortcut to a safe place 5938 | -9/Mines | Discovered new exit (range 16) 7095 | -9/Mines | Received a Mining Laser from a helpful Derelict 7287 | -9/Mines | Entered Exiles 7287 | -9/Exiles | Accompanied by 1 ally 7347 | -9/Exiles | Met 8R-AWN 7390 | -9/Exiles | Met EX-HEX 7465 | -9/Exiles | Met EX-BIN 7495 | -9/Exiles | Met EX-DEC 7901 | -9/Exiles | Aligned with FarCom system 7904 | -9/Exiles | Given EX-Vault access code 7961 | -9/Exiles | Opened EX-Vault 7984 | -9/Exiles | Found AWS/Gauss 8040 | -9/Exiles | Warned to stay clear of 0b10 Research branches 8649 | -9/Exiles | Discovered new exit (range 14) 9116 | -9/Exiles | Found Gui. Plasma Cannon 9127 | -9/Exiles | Found Army-in-a-Box 10386 | -9/Exiles | Attacked by the Exiles 10477 | -9/Exiles | Destroyed 8R-AWN 10499 | -9/Exiles | Found Prototype Ballistic Gun 10500 | -9/Exiles | Lost 3 parts (1p1n1w) 10500 | -9/Exiles | Identified 8R-AWN's Boregun 10521 | -9/Exiles | Found Prototype Device 10527 | -9/Exiles | Identified AS-neutralizer No. 17b 10546 | -9/Exiles | Found 8R-AWN's Boregun 10702 | -9/Exiles | Stole two prototypes: AWS/Gauss, Gui. Plasma Cannon 10702 | -9/Exiles | Entered Mines 10916 | -8/Mines | Discovered new exit (range 10) 10966 | -8/Mines | Build established: Scavenger-Mutant 11314 | -8/Mines | Discovered new exit (range 8) 11750 | -8/Mines | Entered Materials 11750 | -8/Materials | Evolved 2 slots: Propulsion x2 11810 | -8/Materials | Garrison activated, responded to threat 12287 | -8/Materials | Repaired Broken Adv. Weapon Cycler 12612 | -8/Materials | Discovered new exit (range 15) 12894 | -8/Materials | Discovered new exit (range 15) 12897 | -8/Materials | Central database locked down 13210 | -8/Materials | Build established: Scavenger-Tank 13851 | -8/Materials | Discovered new exit (range 12) 14161 | -8/Materials | Repaired Gravity Neutralizer 14206 | -8/Materials | Repaired Rnf. Deuterium Engine 15033 | -8/Materials | Identified exit to Garrison 15076 | -8/Materials | Build established: Tank 15126 | -8/Materials | Entered Garrison 15183 | -8/Garrison | Triggered checkpoint 15250 | -8/Garrison | Garrison Relay disabled 15562 | -8/Garrison | Discovered new exit (range 6) 15774 | -8/Garrison | Build established: Mutant 15819 | -8/Garrison | Triggered checkpoint 15988 | -8/Garrison | Triggered checkpoint 16071 | -8/Garrison | Garrison Relay disabled 16166 | -8/Garrison | Discovered new exit (range 13) 16218 | -8/Garrison | Triggered checkpoint 16297 | -8/Garrison | Triggered checkpoint 16312 | -8/Garrison | Triggered checkpoint 16524 | -8/Garrison | Triggered checkpoint 16607 | -8/Garrison | Discovered new exit (range 9) 16733 | -8/Garrison | Build established: Tank 16759 | -8/Garrison | Garrison Relay disabled 16860 | -8/Garrison | Triggered checkpoint 16899 | -8/Garrison | Garrison Relay disabled 16915 | -8/Garrison | Installed Relay Interface Framework 17067 | -8/Garrison | Build established: Mutant 17139 | -8/Garrison | Entered Materials 17139 | -8/Materials | Accompanied by 3 allies 17468 | -8/Materials | Build established: Tank 17511 | -8/Materials | Discovered new exit (range 16) 18170 | -8/Materials | Discovered new exit (range 5) 18339 | -8/Materials | First assault squad dispatched 18487 | -8/Materials | Destroyed 7 combat bots 18751 | -8/Materials | Identified exit to Factory 19181 | -8/Materials | Build established: Scavenger-Tank 19533 | -8/Materials | Repaired Arm. Treads 19572 | -8/Materials | Repaired Arm. Treads 19841 | -8/Materials | Repaired Arm. Treads 19912 | -8/Materials | Entered Factory 19912 | -7/Factory | Evolved 2 slots: Utility x1, Weapon x1 19919 | -7/Factory | Build established: Scavenger-Gunner 20033 | -7/Factory | Identified exit to DSF 20245 | -7/Factory | Identified exit to Factory 22016 | -7/Factory | Build established: Gunner 23819 | -7/Factory | Sucked down chute 23819 | -7/Factory | Entered Waste 23834 | -7/Waste | EMP discharged 23880 | -7/Waste | Spotted C-40 Crusher 23905 | -7/Waste | Destroyed C-40 Crusher 23921 | -7/Waste | Spotted C-40 Crusher 23934 | -7/Waste | EMP discharged 23934 | -7/Waste | System corruption reached 10% 23938 | -7/Waste | Crushed by Compactor (1 part destroyed) 23941 | -7/Waste | Crushed by Compactor (1 part destroyed, 1 dropped) 23947 | -7/Waste | Spotted C-40 Crusher 23985 | -7/Waste | Destroyed C-40 Crusher 23995 | -7/Waste | Spotted C-40 Crusher 24000 | -7/Waste | Destroyed C-40 Crusher 24034 | -7/Waste | EMP discharged 24099 | -7/Waste | Spotted C-40 Crusher 24134 | -7/Waste | EMP discharged 24147 | -7/Waste | Discovered new exit (range 10) 24164 | -7/Waste | Entered Factory 24169 | -7/Factory | Self-destructed Last Messages --------------- 24024_ ALERT: Foreign system detected. Charging EMP. 24031_ The unstable cave ceiling collapses. 24034_ System corrupted (+6). 24034_ Corrupted Adv. Cooling System fried beyond repair. 24034_ Damper Plating fried beyond repair. 24034_ Broken 8R-AWN's Boregun fried beyond repair. 24034_ Imp. Cooling System fried beyond repair. 24034_ 214 Matter fried beyond repair. 24040_ System corrupted: Matter fused (-6). 24068_ System corrupted: IFF burst signal emitted. 24084_ PKWFF#A/UX|%E5A<&NZ1VI8BVO&>IW/ 24091_ Corrupted Hvy. Treads crushed. 24124_ ALERT: Foreign system detected. Charging EMP. 24126_ System corrupted: Matter fused (-10). 24134_ System corrupted (+5). 24146_ System corrupted: Energy discharge (-108). 24147_ EXIT=FOUND LOCATION=UNKNOWN GOAL=ESCAPE 24165_ System corrupted: Energy discharge (-108). Map ----- +----------------------------------------------------+ | ?????????????????????????????????????? | | ?????????????????????????????????????? | | ?????????????????????????????????????? | | ?????????????????????????????????????? | | ?????????????????????????????????????? | | ?????????????????????????????????????? | | ?????????????????????????????????????? | | ?????????????????????????????????????? | | ?????????????????????????????????????? | | ?????????????????????????????????????? | | ?????????????????????????????????????? | | ?????????????#???##??????????????????? | | ???????????? ??? ??????????????????? | | ???????????? ??? ???? ?????????????? | | ???????????? """ "??? ????????????? | | ???????????? """ """ !! ????????????? | | ????????????? """ """ !!?????????????? | | ????????????? ??????????????? | | ????????????? ???????????????? | | ???########??# ????????????????? | | ???? ??# #?????????????????? | | ????""" ?# #?????????????????? | | ????""" ?# #?????????????????? | | ????""" # #?????????????????? | | ???"""" ! # #?????????????????? | | ???"""" @ +?????????????????? | | ???"""" """ # #?????????????????? | | ?????"" """ # #?????????????????? | | ?????? "?# #?????????????????? | | ?????? "F"?## ####?????????????????? | | ????? ""???# #????????????????????? | | ????? ???# #????????????????????? | | ?????###?#????# #????????????????????? | | ??????????????# #????????????????????? | | ??????????????# #????????????????????? | | ??????????????# #????????????????????? | | ??????????????? #????????????????????? | | ??????????????? #????????????????????? | | ??????????????? ?????????????????????? | | ??????????????? ?????????????????????? | | ??????????????? ?????????????????????? | | ??????????????? ?????????????????????? | | ?????????????????????????????????????? | | ?????????????????????????????????????? | | ?????????????????????????????????????? | | ?????????????????????????????????????? | | ?????????????????????????????????????? | | ?????????????????????????????????????? | | ?????????????????????????????????????? | | ?????????????????????????????????????? | +----------------------------------------------------+ Best States ------------- Heat Dissipation 60 Energy Generation 19 Energy Capacity 310 Matter Stores 300 Matter Capacity 300 Sight Range 16 Terrain Scan Density 10 Additional Mass Support 12 Armor Coverage 600 Core Shielding 20 Weapon Cycling 25 Evasion (%) 55 Targeting Accuracy 5 Recoil Reduction 4 Kinecelleration 30 Defensive Hacking 10 Authchip Count 2 Item Schematics ----------------- Imp. Assault Rifle | -9/Materials | Scanalyzed Adv. Weapon Cycler | -8/Materials | Scanalyzed Enh. Autogun | -8/Materials | Scanalyzed Exp. Heat Sink | -8/Materials | Scanalyzed Recalibrator | -8/Materials | Scanalyzed Robot Schematics ------------------ None Fabricated ------------ Nothing Alien Tech Used ----------------- None Achievements -------------- A New Friend Prolific Hacker Treasure Hunter Challenges ------------ None Game ------ Seed TeslaThermicNullifier Manual? 0 Play Time 04:08:04 Cumulative 42.2 hours Start 2023.07.11 @ 16:08:04 End 2023.07.13 @ 18:09:42 Sessions 7 Manual Loads 0 Difficulty Rogue Special Mode None Game No. 27 Rogue 27 Adventurer 0 Explorer 0 Win Type - Total 0 Types 0/0/0/0/0/0/0/0/0 Lore% 27 Gallery% 30 Achievement% 30 Wizard Run 0 Options --------- ASCII 0 Keyboard 0 Movement Mouse Keybinds 0 Fullscreen 1 Font 18/SmallcapsGlow Map View 76x50 Tactical HUD 1 Map Filters NONE Filters NONE Steam X RUN: 2811d0f5-3104-41ad-a055-d75a2ee32066